[Event "Late-Titled-Tuesday-Blitz-March-19-2024"]
[Site "Chess.com"]
[Date "2024.03.19"]
[Round "7"]
[White "Vadim_Galchenko"]
[Black "Eloist"]
[Result "0-1"]
[WhiteElo "2593"]
[BlackElo "2496"]
[TimeControl "180+1"]
[EndTime "15:14:40 PDT"]
[Termination "Eloist won by checkmate"]

1. e4 {[%clk 0:03:00.9]} 1... e6 {[%clk 0:03:00.1]} 2. d4 {[%clk 0:03:01]} 2...
d5 {[%clk 0:03:00.3]} 3. Nd2 {[%clk 0:03:01.7]} 3... c5 {[%clk 0:02:59.6]} 4.
exd5 {[%clk 0:03:01.6]} 4... Qxd5 {[%clk 0:02:59.6]} 5. Ngf3 {[%clk 0:03:02.3]}
5... cxd4 {[%clk 0:02:59.4]} 6. Bc4 {[%clk 0:03:02.9]} 6... Qd6 {[%clk
0:02:57.7]} 7. O-O {[%clk 0:02:57.3]} 7... Nf6 {[%clk 0:02:57.6]} 8. Nb3 {[%clk
0:02:58]} 8... Nc6 {[%clk 0:02:57.8]} 9. Nbxd4 {[%clk 0:02:58.2]} 9... Nxd4
{[%clk 0:02:58.3]} 10. Qxd4 {[%clk 0:02:59.1]} 10... Qxd4 {[%clk 0:02:57.8]} 11.
Nxd4 {[%clk 0:03:00]} 11... Bd7 {[%clk 0:02:50.6]} 12. a4 {[%clk 0:02:51.2]}
12... Rc8 {[%clk 0:02:44.8]} 13. b3 {[%clk 0:02:44.4]} 13... Bc5 {[%clk
0:02:38.1]} 14. Bb2 {[%clk 0:02:42.3]} 14... O-O {[%clk 0:02:35.9]} 15. Rfd1
{[%clk 0:02:38.9]} 15... Rfd8 {[%clk 0:02:31.4]} 16. Rd3 {[%clk 0:02:21]} 16...
e5 {[%clk 0:02:29.3]} 17. Nb5 {[%clk 0:02:02.2]} 17... Bf5 {[%clk 0:02:13.4]}
18. Rxd8+ {[%clk 0:01:54.5]} 18... Rxd8 {[%clk 0:02:13.6]} 19. Bxe5 {[%clk
0:01:52.7]} 19... Bxf2+ {[%clk 0:01:46]} 20. Kxf2 {[%clk 0:01:50.7]} 20... Ng4+
{[%clk 0:01:45.9]} 21. Kg3 {[%clk 0:01:46.6]} 21... Nxe5 {[%clk 0:01:44.5]} 22.
Kf4 {[%clk 0:01:42.7]} 22... Nxc4 {[%clk 0:01:34.7]} 23. bxc4 {[%clk 0:01:36.9]}
23... Bxc2 {[%clk 0:01:25.2]} 24. Nxa7 {[%clk 0:01:29.8]} 24... Rd4+ {[%clk
0:01:18.3]} 25. Ke5 {[%clk 0:01:29.8]} 25... Rxc4 {[%clk 0:01:18]} 26. a5 {[%clk
0:01:28.6]} 26... f6+ {[%clk 0:01:07.3]} 27. Kd5 {[%clk 0:01:26.3]} 27... Bb3
{[%clk 0:00:43.8]} 28. Kd6 {[%clk 0:01:22]} 28... Kf7 {[%clk 0:00:39.4]} 29. Rb1
{[%clk 0:01:08.1]} 29... Rc3 {[%clk 0:00:38.2]} 30. Nb5 {[%clk 0:01:04.3]} 30...
Rc6+ {[%clk 0:00:36.9]} 31. Kd7 {[%clk 0:00:57]} 31... Be6+ {[%clk 0:00:36.8]}
32. Kd8 {[%clk 0:00:56.6]} 32... Rc8# {[%clk 0:00:36.7]} 0-1

[Event "Late-Titled-Tuesday-Blitz-March-19-2024"]
[Site "Chess.com"]
[Date "2024.03.19"]
[Round "7"]
[White "ExchangeAB"]
[Black "Thjop"]
[Result "1/2-1/2"]
[WhiteElo "2509"]
[BlackElo "2638"]
[TimeControl "180+1"]
[EndTime "15:14:43 PDT"]
[Termination "Game drawn by agreement"]

1. d4 {[%clk 0:03:00.9]} 1... d5 {[%clk 0:03:00.1]} 2. Nf3 {[%clk 0:03:01.2]}
2... Nf6 {[%clk 0:03:00.3]} 3. e3 {[%clk 0:02:58.7]} 3... Bf5 {[%clk 0:02:59.8]}
4. Bd3 {[%clk 0:02:57]} 4... Bxd3 {[%clk 0:03:00]} 5. Qxd3 {[%clk 0:02:57.5]}
5... c6 {[%clk 0:03:00.3]} 6. O-O {[%clk 0:02:57.7]} 6... e6 {[%clk 0:03:00.6]}
7. b3 {[%clk 0:02:57.9]} 7... Bd6 {[%clk 0:03:00.7]} 8. Ba3 {[%clk 0:02:58]}
8... O-O {[%clk 0:03:00.4]} 9. Bxd6 {[%clk 0:02:57.9]} 9... Qxd6 {[%clk
0:03:01.3]} 10. c4 {[%clk 0:02:58]} 10... Nbd7 {[%clk 0:03:01.2]} 11. Nc3 {[%clk
0:02:58.1]} 11... Rfe8 {[%clk 0:03:01.2]} 12. cxd5 {[%clk 0:02:57.2]} 12... exd5
{[%clk 0:03:01.1]} 13. a3 {[%clk 0:02:55.5]} 13... Ne4 {[%clk 0:02:59.2]} 14. b4
{[%clk 0:02:54.9]} 14... a6 {[%clk 0:02:58.8]} 15. Na4 {[%clk 0:02:54]} 15... b5
{[%clk 0:02:54.3]} 16. Nc5 {[%clk 0:02:53.6]} 16... a5 {[%clk 0:02:45.7]} 17.
Nxd7 {[%clk 0:02:44.2]} 17... Qxd7 {[%clk 0:02:44.6]} 18. Nd2 {[%clk 0:02:34.5]}
18... Nd6 {[%clk 0:02:40.8]} 19. Nb3 {[%clk 0:02:31.4]} 19... axb4 {[%clk
0:02:39.2]} 20. axb4 {[%clk 0:02:30.8]} 20... Nc4 {[%clk 0:02:39.1]} 21. Nc5
{[%clk 0:02:26.7]} 21... Qe7 {[%clk 0:02:38.9]} 22. Qc3 {[%clk 0:02:21.2]} 22...
g6 {[%clk 0:02:36.6]} 23. Rxa8 {[%clk 0:02:18.4]} 23... Rxa8 {[%clk 0:02:35.9]}
24. Ra1 {[%clk 0:02:18.9]} 24... Ra7 {[%clk 0:02:27.1]} 25. g3 {[%clk
0:02:12.5]} 25... h5 {[%clk 0:02:26.5]} 26. h4 {[%clk 0:02:12.2]} 26... Qc7
{[%clk 0:02:21.9]} 27. e4 {[%clk 0:01:54.3]} 27... Qb8 {[%clk 0:02:20.6]} 28. e5
{[%clk 0:01:35]} 28... Qa8 {[%clk 0:02:20.1]} 29. Rxa7 {[%clk 0:01:34.9]} 29...
Qxa7 {[%clk 0:02:21]} 30. Kg2 {[%clk 0:01:34.3]} 30... Qa2 {[%clk 0:02:19.3]}
31. e6 {[%clk 0:01:25]} 31... fxe6 {[%clk 0:01:31.4]} 32. Qd3 {[%clk 0:01:23.3]}
32... Kh7 {[%clk 0:01:25.3]} 33. Nxe6 {[%clk 0:01:22.4]} 33... Nd2 {[%clk
0:01:11.4]} 34. Nf8+ {[%clk 0:01:12.8]} 34... Kg7 {[%clk 0:01:11.3]} 35. Qxg6+
{[%clk 0:00:29.6]} 35... Kxf8 {[%clk 0:01:11.1]} 36. Qf6+ {[%clk 0:00:28.9]}
1/2-1/2

[Event "Late-Titled-Tuesday-Blitz-March-19-2024"]
[Site "Chess.com"]
[Date "2024.03.19"]
[Round "7"]
[White "Kostukov_Alex"]
[Black "Dr_Pepper18"]
[Result "0-1"]
[WhiteElo "2277"]
[BlackElo "2441"]
[TimeControl "180+1"]
[EndTime "15:14:43 PDT"]
[Termination "Dr_Pepper18 won on time"]

1. g3 {[%clk 0:03:00.9]} 1... Nf6 {[%clk 0:02:59.3]} 2. Bg2 {[%clk 0:02:59.7]}
2... d5 {[%clk 0:02:59.1]} 3. d3 {[%clk 0:02:59.4]} 3... c5 {[%clk 0:02:57.4]}
4. e4 {[%clk 0:02:59.4]} 4... Nc6 {[%clk 0:02:56]} 5. exd5 {[%clk 0:02:58.3]}
5... Nxd5 {[%clk 0:02:56.9]} 6. Ne2 {[%clk 0:02:58.7]} 6... Bg4 {[%clk
0:02:55.9]} 7. Nbc3 {[%clk 0:02:53.2]} 7... Nd4 {[%clk 0:02:36.8]} 8. Qd2 {[%clk
0:00:45.9]} 8... Nf3+ {[%clk 0:02:10.5]} 9. Bxf3 {[%clk 0:00:44.3]} 9... Bxf3
{[%clk 0:02:11.4]} 10. O-O {[%clk 0:00:43.3]} 10... e6 {[%clk 0:02:06.7]} 11.
Nf4 {[%clk 0:00:33.2]} 11... Nxf4 {[%clk 0:01:35.5]} 12. Qxf4 {[%clk 0:00:32]}
12... Bc6 {[%clk 0:01:36.1]} 13. Ne4 {[%clk 0:00:24.6]} 13... Be7 {[%clk
0:01:33.4]} 14. Be3 {[%clk 0:00:24.5]} 14... b6 {[%clk 0:01:30.2]} 15. h4 {[%clk
0:00:16.6]} 15... O-O {[%clk 0:01:25.6]} 16. Rad1 {[%clk 0:00:13.4]} 16... Qd5
{[%clk 0:01:18.2]} 17. c4 {[%clk 0:00:10.9]} 17... Qh5 {[%clk 0:01:15.7]} 18. d4
{[%clk 0:00:03.7]} 18... cxd4 {[%clk 0:01:15.5]} 19. Rxd4 {[%clk 0:00:03.1]}
19... e5 {[%clk 0:01:03.5]} 0-1

[Event "Late-Titled-Tuesday-Blitz-March-19-2024"]
[Site "Chess.com"]
[Date "2024.03.19"]
[Round "7"]
[White "nindjaxx8"]
[Black "Schattman"]
[Result "1-0"]
[WhiteElo "2666"]
[BlackElo "2505"]
[TimeControl "180+1"]
[EndTime "15:14:46 PDT"]
[Termination "nindjaxx8 won on time"]

1. d4 {[%clk 0:03:00.9]} 1... Nf6 {[%clk 0:02:57.7]} 2. c4 {[%clk 0:03:01.5]}
2... g6 {[%clk 0:02:57.2]} 3. Nc3 {[%clk 0:03:01.5]} 3... d5 {[%clk 0:02:57.3]}
4. Nf3 {[%clk 0:02:58.3]} 4... Bg7 {[%clk 0:02:57.3]} 5. Bf4 {[%clk 0:02:57.4]}
5... O-O {[%clk 0:02:43.9]} 6. e3 {[%clk 0:02:55.9]} 6... c5 {[%clk 0:02:40.1]}
7. dxc5 {[%clk 0:02:49.9]} 7... Qa5 {[%clk 0:02:37.6]} 8. Rc1 {[%clk 0:02:43.5]}
8... Ne4 {[%clk 0:02:34.2]} 9. cxd5 {[%clk 0:02:43.2]} 9... Nxc3 {[%clk
0:02:29.3]} 10. Qd2 {[%clk 0:02:42.8]} 10... Nd7 {[%clk 0:02:29.3]} 11. bxc3
{[%clk 0:02:42]} 11... Nxc5 {[%clk 0:02:29.2]} 12. Bd3 {[%clk 0:02:25.4]} 12...
Nxd3+ {[%clk 0:02:11.7]} 13. Qxd3 {[%clk 0:02:25.6]} 13... Bf5 {[%clk
0:02:10.8]} 14. Qd2 {[%clk 0:02:25.3]} 14... Be4 {[%clk 0:02:02.2]} 15. c4
{[%clk 0:02:23.6]} 15... Qa6 {[%clk 0:01:52.4]} 16. O-O {[%clk 0:02:17.8]} 16...
Rac8 {[%clk 0:01:44.9]} 17. Qb4 {[%clk 0:01:43.7]} 17... Rfe8 {[%clk 0:01:32.3]}
18. Rfd1 {[%clk 0:01:27.7]} 18... Bxf3 {[%clk 0:01:25.9]} 19. gxf3 {[%clk
0:01:26.4]} 19... Qxa2 {[%clk 0:01:20]} 20. c5 {[%clk 0:01:21.5]} 20... Qa6
{[%clk 0:01:09.6]} 21. d6 {[%clk 0:01:15.4]} 21... exd6 {[%clk 0:00:50.5]} 22.
cxd6 {[%clk 0:01:13.7]} 22... Rxc1 {[%clk 0:00:44.4]} 23. Rxc1 {[%clk
0:01:14.6]} 23... b6 {[%clk 0:00:26.3]} 24. d7 {[%clk 0:01:10.9]} 24... Rd8
{[%clk 0:00:06]} 25. Qe7 {[%clk 0:01:09.7]} 1-0

[Event "Late-Titled-Tuesday-Blitz-March-19-2024"]
[Site "Chess.com"]
[Date "2024.03.19"]
[Round "7"]
[White "MusicCityMaster"]
[Black "RantomOpening"]
[Result "0-1"]
[WhiteElo "2453"]
[BlackElo "2594"]
[TimeControl "180+1"]
[EndTime "15:14:46 PDT"]
[Termination "RantomOpening won by checkmate"]

1. d4 {[%clk 0:03:00.9]} 1... d5 {[%clk 0:02:59.3]} 2. c4 {[%clk 0:03:00]} 2...
e6 {[%clk 0:02:59.8]} 3. Nf3 {[%clk 0:02:59.1]} 3... a6 {[%clk 0:02:59.2]} 4. e3
{[%clk 0:02:59.4]} 4... Nf6 {[%clk 0:02:59.2]} 5. Bd3 {[%clk 0:02:56.4]} 5...
dxc4 {[%clk 0:02:58.8]} 6. Bxc4 {[%clk 0:02:57.3]} 6... b5 {[%clk 0:02:59.4]} 7.
Bd3 {[%clk 0:02:57.3]} 7... Bb7 {[%clk 0:03:00]} 8. Qe2 {[%clk 0:02:57.7]} 8...
Nbd7 {[%clk 0:03:00.4]} 9. O-O {[%clk 0:02:53.9]} 9... c6 {[%clk 0:03:00.9]} 10.
Nbd2 {[%clk 0:02:52.7]} 10... c5 {[%clk 0:02:59.7]} 11. dxc5 {[%clk 0:02:43.2]}
11... Nxc5 {[%clk 0:03:00.6]} 12. Bb1 {[%clk 0:02:38.4]} 12... Be7 {[%clk
0:03:00.1]} 13. b4 {[%clk 0:02:31.6]} 13... Na4 {[%clk 0:03:00]} 14. Bc2 {[%clk
0:02:04.4]} 14... Nc3 {[%clk 0:02:59.1]} 15. Qe1 {[%clk 0:01:58.9]} 15... Bxb4
{[%clk 0:02:58.8]} 16. a3 {[%clk 0:01:51.3]} 16... Be7 {[%clk 0:02:58.9]} 17.
Bb2 {[%clk 0:01:48]} 17... Ncd5 {[%clk 0:02:58.9]} 18. Ne5 {[%clk 0:01:38.3]}
18... Rc8 {[%clk 0:02:58]} 19. Bb3 {[%clk 0:01:33.1]} 19... O-O {[%clk
0:02:58.6]} 20. f4 {[%clk 0:01:19.6]} 20... Bc5 {[%clk 0:02:58.4]} 21. Rf3
{[%clk 0:01:13.2]} 21... Qb6 {[%clk 0:02:57.4]} 22. Nf1 {[%clk 0:01:03.2]} 22...
Rfd8 {[%clk 0:02:54.4]} 23. Kh1 {[%clk 0:00:56.9]} 23... Ne4 {[%clk 0:02:54.6]}
24. Qh4 {[%clk 0:00:48.2]} 24... Ndf6 {[%clk 0:02:54.3]} 25. Rh3 {[%clk
0:00:41.9]} 25... Ba8 {[%clk 0:02:34.9]} 26. Ng4 {[%clk 0:00:31.8]} 26... Qc6
{[%clk 0:02:21.9]} 27. Nxf6+ {[%clk 0:00:28.9]} 27... Nxf6 {[%clk 0:02:21.8]}
28. Rg3 {[%clk 0:00:27]} 28... e5 {[%clk 0:01:59.8]} 29. Bxe5 {[%clk 0:00:23.8]}
29... Be7 {[%clk 0:01:59]} 30. Qg5 {[%clk 0:00:17.8]} 30... g6 {[%clk
0:01:55.9]} 31. Qh6 {[%clk 0:00:16.8]} 31... Bf8 {[%clk 0:01:51.1]} 32. Rxg6+
{[%clk 0:00:10.6]} 32... hxg6 {[%clk 0:01:50.9]} 33. Qxg6+ {[%clk 0:00:11]}
33... Bg7 {[%clk 0:01:49.9]} 34. Qxf7+ {[%clk 0:00:09.9]} 34... Kh8 {[%clk
0:01:48.8]} 35. e4 {[%clk 0:00:06.5]} 35... Qxe4 {[%clk 0:01:45.6]} 36. Ne3
{[%clk 0:00:06.7]} 36... Qxe3 {[%clk 0:01:37.4]} 37. Bxf6 {[%clk 0:00:06.8]}
37... Rc1+ {[%clk 0:01:38]} 38. Bd1 {[%clk 0:00:04]} 38... Rdxd1# {[%clk
0:01:37.6]} 0-1

[Event "Late-Titled-Tuesday-Blitz-March-19-2024"]
[Site "Chess.com"]
[Date "2024.03.19"]
[Round "7"]
[White "NovakRatko"]
[Black "valeriocarnicelli"]
[Result "1-0"]
[WhiteElo "2425"]
[BlackElo "2537"]
[TimeControl "180+1"]
[EndTime "15:15:03 PDT"]
[Termination "NovakRatko won by resignation"]

1. d4 {[%clk 0:02:23.1]} 1... Nf6 {[%clk 0:02:22.2]} 2. c4 {[%clk 0:02:22.1]}
2... c5 {[%clk 0:02:22.2]} 3. dxc5 {[%clk 0:02:22]} 3... Qa5+ {[%clk 0:02:21.1]}
4. Nc3 {[%clk 0:02:21.9]} 4... Qxc5 {[%clk 0:02:21.5]} 5. e4 {[%clk 0:02:22.6]}
5... d6 {[%clk 0:02:21.1]} 6. Be3 {[%clk 0:02:22.8]} 6... Qa5 {[%clk 0:02:20]}
7. Qd2 {[%clk 0:02:21.2]} 7... Nc6 {[%clk 0:02:19.7]} 8. a3 {[%clk 0:02:20.8]}
8... g6 {[%clk 0:02:19.5]} 9. Nf3 {[%clk 0:02:19.1]} 9... Bg7 {[%clk 0:02:17.3]}
10. h3 {[%clk 0:02:19]} 10... O-O {[%clk 0:02:16.3]} 11. Be2 {[%clk 0:02:19.3]}
11... a6 {[%clk 0:01:59.4]} 12. O-O {[%clk 0:02:18.7]} 12... Bd7 {[%clk
0:01:57.9]} 13. Nd5 {[%clk 0:02:18]} 13... Qxd2 {[%clk 0:01:55.8]} 14. Nxd2
{[%clk 0:02:17.5]} 14... Nxd5 {[%clk 0:01:45.4]} 15. cxd5 {[%clk 0:02:15.2]}
15... Na7 {[%clk 0:01:45.1]} 16. Rab1 {[%clk 0:02:07.7]} 16... Rfc8 {[%clk
0:01:41]} 17. Nc4 {[%clk 0:01:54.7]} 17... Bb5 {[%clk 0:01:35.6]} 18. b3 {[%clk
0:01:54]} 18... a5 {[%clk 0:01:21]} 19. a4 {[%clk 0:01:41.1]} 19... Ba6 {[%clk
0:01:19.4]} 20. Rfe1 {[%clk 0:01:40.8]} 20... Bc3 {[%clk 0:01:07.9]} 21. Rec1
{[%clk 0:01:39.8]} 21... Bb4 {[%clk 0:01:08.3]} 22. Kf1 {[%clk 0:01:36.7]} 22...
Rc7 {[%clk 0:01:02.3]} 23. Nb6 {[%clk 0:01:31.5]} 23... Rxc1+ {[%clk 0:00:43.2]}
24. Rxc1 {[%clk 0:01:31.2]} 24... Re8 {[%clk 0:00:41.1]} 25. Bxa6 {[%clk
0:01:23.9]} 25... bxa6 {[%clk 0:00:42]} 26. Rc2 {[%clk 0:01:24.2]} 26... Rb8
{[%clk 0:00:22.1]} 27. Rc7 {[%clk 0:01:22]} 27... Nb5 {[%clk 0:00:21.6]} 28.
axb5 {[%clk 0:01:19.8]} 28... axb5 {[%clk 0:00:22.5]} 29. Rxe7 {[%clk
0:01:12.8]} 29... Bc5 {[%clk 0:00:22]} 30. Nd7 {[%clk 0:01:08.6]} 30... Rb7
{[%clk 0:00:21.5]} 31. Re8+ {[%clk 0:01:07.1]} 31... Kg7 {[%clk 0:00:21.4]} 32.
Nxc5 {[%clk 0:01:06.1]} 32... dxc5 {[%clk 0:00:22]} 33. Bxc5 {[%clk 0:01:06.6]}
33... Rc7 {[%clk 0:00:22.8]} 34. d6 {[%clk 0:01:05]} 1-0

[Event "Late-Titled-Tuesday-Blitz-March-19-2024"]
[Site "Chess.com"]
[Date "2024.03.19"]
[Round "7"]
[White "mbachez"]
[Black "Redzishchess"]
[Result "1-0"]
[WhiteElo "2652"]
[BlackElo "2504"]
[TimeControl "180+1"]
[EndTime "15:15:12 PDT"]
[Termination "mbachez won on time"]

1. e4 {[%clk 0:03:00.9]} 1... c5 {[%clk 0:02:43.9]} 2. Nf3 {[%clk 0:03:00.9]}
2... d6 {[%clk 0:02:44]} 3. c3 {[%clk 0:03:00.5]} 3... Nf6 {[%clk 0:02:34.4]} 4.
Bd3 {[%clk 0:03:00.6]} 4... Nc6 {[%clk 0:02:22.3]} 5. Bc2 {[%clk 0:02:56.6]}
5... e5 {[%clk 0:02:22.2]} 6. O-O {[%clk 0:02:55.4]} 6... Be7 {[%clk 0:02:20.1]}
7. h3 {[%clk 0:02:54.5]} 7... O-O {[%clk 0:02:16.8]} 8. d4 {[%clk 0:02:54.3]}
8... b5 {[%clk 0:01:53.5]} 9. a4 {[%clk 0:02:50.7]} 9... b4 {[%clk 0:01:53.2]}
10. dxe5 {[%clk 0:02:48.2]} 10... dxe5 {[%clk 0:01:51.6]} 11. Nbd2 {[%clk
0:02:48.2]} 11... Ba6 {[%clk 0:01:43.5]} 12. Re1 {[%clk 0:02:48.4]} 12... Qc7
{[%clk 0:01:27.4]} 13. Nh4 {[%clk 0:02:46.5]} 13... Rfd8 {[%clk 0:01:23.6]} 14.
Nf5 {[%clk 0:02:45.2]} 14... Bf8 {[%clk 0:01:22.7]} 15. Qf3 {[%clk 0:02:45.2]}
15... g6 {[%clk 0:00:57.7]} 16. Ne3 {[%clk 0:02:43.7]} 16... Bg7 {[%clk
0:00:52.2]} 17. Nd5 {[%clk 0:02:42.9]} 17... Qd6 {[%clk 0:00:38.1]} 18. Bb3
{[%clk 0:02:36.6]} 18... Ne7 {[%clk 0:00:31.4]} 19. Nxe7+ {[%clk 0:02:32.2]}
19... Qxe7 {[%clk 0:00:32.3]} 20. Nc4 {[%clk 0:02:32]} 20... Ne8 {[%clk
0:00:16.5]} 21. Ne3 {[%clk 0:02:28.6]} 21... Nc7 {[%clk 0:00:14.5]} 22. h4
{[%clk 0:02:18.2]} 22... h5 {[%clk 0:00:14]} 23. g3 {[%clk 0:02:18]} 23... Rd7
{[%clk 0:00:11.1]} 24. Bc4 {[%clk 0:02:17.7]} 24... Bxc4 {[%clk 0:00:10.7]} 25.
Nxc4 {[%clk 0:02:17.8]} 25... Rad8 {[%clk 0:00:10.5]} 26. Bg5 {[%clk 0:02:15.4]}
26... f6 {[%clk 0:00:10.9]} 27. Be3 {[%clk 0:02:15.5]} 27... Qe6 {[%clk
0:00:11.2]} 28. Qe2 {[%clk 0:02:13.1]} 28... Bf8 {[%clk 0:00:08.3]} 29. Rac1
{[%clk 0:02:09.2]} 29... Rd3 {[%clk 0:00:08.1]} 30. Nd2 {[%clk 0:01:59.2]} 30...
bxc3 {[%clk 0:00:05.5]} 31. Rxc3 {[%clk 0:01:57.9]} 31... Rxc3 {[%clk
0:00:04.2]} 32. bxc3 {[%clk 0:01:58.2]} 32... Qa2 {[%clk 0:00:04.8]} 33. Qc4+
{[%clk 0:01:58.1]} 33... Qxc4 {[%clk 0:00:03.9]} 34. Nxc4 {[%clk 0:01:58.3]}
34... Rd3 {[%clk 0:00:01.2]} 35. Rc1 {[%clk 0:01:53.9]} 35... Rd8 {[%clk
0:00:01.8]} 36. Rb1 {[%clk 0:01:52.2]} 36... Rd3 {[%clk 0:00:02.1]} 37. Bd2
{[%clk 0:01:44]} 37... Ne8 {[%clk 0:00:02.5]} 38. Kf1 {[%clk 0:01:43.2]} 38...
Nd6 {[%clk 0:00:02.3]} 39. Ke2 {[%clk 0:01:41.6]} 39... Nxc4 {[%clk 0:00:01.2]}
40. Kxd3 {[%clk 0:01:41.7]} 40... Nd6 {[%clk 0:00:01.3]} 41. Be3 {[%clk
0:01:40.2]} 41... c4+ {[%clk 0:00:01.6]} 42. Kc2 {[%clk 0:01:38.3]} 42... Nxe4
{[%clk 0:00:02.5]} 43. Bxa7 {[%clk 0:01:37.8]} 43... Bd6 {[%clk 0:00:02]} 44. a5
{[%clk 0:01:37.2]} 44... f5 {[%clk 0:00:01.8]} 45. a6 {[%clk 0:01:37]} 1-0

[Event "Late-Titled-Tuesday-Blitz-March-19-2024"]
[Site "Chess.com"]
[Date "2024.03.19"]
[Round "7"]
[White "Julianos82"]
[Black "LangesNasenhaar"]
[Result "0-1"]
[WhiteElo "2396"]
[BlackElo "2536"]
[TimeControl "180+1"]
[EndTime "15:15:16 PDT"]
[Termination "LangesNasenhaar won by resignation"]

1. d4 {[%clk 0:03:00.9]} 1... g6 {[%clk 0:02:59.9]} 2. c4 {[%clk 0:03:00.6]}
2... Bg7 {[%clk 0:03:00.5]} 3. Nc3 {[%clk 0:03:01.2]} 3... c5 {[%clk 0:03:01.1]}
4. Nf3 {[%clk 0:02:59.9]} 4... d6 {[%clk 0:02:59.4]} 5. e4 {[%clk 0:02:57.3]}
5... Nc6 {[%clk 0:02:50.7]} 6. d5 {[%clk 0:02:56.6]} 6... Bxc3+ {[%clk
0:02:46.4]} 7. bxc3 {[%clk 0:02:55.8]} 7... Na5 {[%clk 0:02:47.3]} 8. Bg5 {[%clk
0:02:49.4]} 8... b6 {[%clk 0:02:37.6]} 9. Be2 {[%clk 0:02:47]} 9... Ba6 {[%clk
0:02:36.7]} 10. Nd2 {[%clk 0:02:47]} 10... Nf6 {[%clk 0:02:27.7]} 11. Bxf6
{[%clk 0:02:43.8]} 11... exf6 {[%clk 0:02:27.7]} 12. O-O {[%clk 0:02:44]} 12...
O-O {[%clk 0:02:26.8]} 13. Qc2 {[%clk 0:02:44.2]} 13... Re8 {[%clk 0:02:26.4]}
14. Rae1 {[%clk 0:02:42.6]} 14... Qd7 {[%clk 0:02:20.3]} 15. h3 {[%clk
0:02:41.5]} 15... Re7 {[%clk 0:02:19.2]} 16. Bd3 {[%clk 0:02:41.3]} 16... Rae8
{[%clk 0:02:18.6]} 17. f4 {[%clk 0:02:37.7]} 17... f5 {[%clk 0:01:55.2]} 18. Re3
{[%clk 0:02:20]} 18... Kg7 {[%clk 0:01:49.9]} 19. Rfe1 {[%clk 0:02:05.4]} 19...
fxe4 {[%clk 0:01:38.2]} 20. Rxe4 {[%clk 0:01:56.3]} 20... Rxe4 {[%clk 0:01:38]}
21. Rxe4 {[%clk 0:01:47.3]} 21... Rxe4 {[%clk 0:01:37.9]} 22. Nxe4 {[%clk
0:01:42.5]} 22... Bxc4 {[%clk 0:01:30]} 23. Bxc4 {[%clk 0:01:27.3]} 23... Nxc4
{[%clk 0:01:30.2]} 24. Qe2 {[%clk 0:01:25.5]} 24... b5 {[%clk 0:01:27.6]} 25. g4
{[%clk 0:01:25]} 25... Nb6 {[%clk 0:01:17.3]} 26. Kf2 {[%clk 0:01:01.9]} 26...
Nxd5 {[%clk 0:01:11.1]} 27. Qd3 {[%clk 0:00:53.9]} 27... Nxf4 {[%clk 0:00:58.3]}
28. Qf3 {[%clk 0:00:48.3]} 28... d5 {[%clk 0:00:42.1]} 29. Nxc5 {[%clk
0:00:37.3]} 29... Qc7 {[%clk 0:00:42.5]} 30. Qe3 {[%clk 0:00:19.8]} 30... Qxc5
{[%clk 0:00:37.1]} 0-1

[Event "Late-Titled-Tuesday-Blitz-March-19-2024"]
[Site "Chess.com"]
[Date "2024.03.19"]
[Round "7"]
[White "rhwr"]
[Black "SocoLoco"]
[Result "1-0"]
[WhiteElo "2306"]
[BlackElo "2152"]
[TimeControl "180+1"]
[EndTime "15:15:20 PDT"]
[Termination "rhwr won on time"]

1. e4 {[%clk 0:02:59.5]} 1... c5 {[%clk 0:02:58.9]} 2. Nf3 {[%clk 0:02:59.1]}
2... e6 {[%clk 0:02:58.8]} 3. d4 {[%clk 0:02:57.9]} 3... cxd4 {[%clk 0:02:59.4]}
4. Nxd4 {[%clk 0:02:58.4]} 4... Nf6 {[%clk 0:02:59.3]} 5. Bd3 {[%clk 0:02:55.2]}
5... Nc6 {[%clk 0:02:59.2]} 6. Nxc6 {[%clk 0:02:53.1]} 6... bxc6 {[%clk
0:03:00.1]} 7. O-O {[%clk 0:02:53]} 7... d5 {[%clk 0:03:00]} 8. e5 {[%clk
0:02:52.4]} 8... Nd7 {[%clk 0:02:59.5]} 9. Re1 {[%clk 0:02:50.9]} 9... Qc7
{[%clk 0:02:58.9]} 10. Bf4 {[%clk 0:02:47.2]} 10... Rb8 {[%clk 0:02:41]} 11. b3
{[%clk 0:02:46.2]} 11... h6 {[%clk 0:02:37.7]} 12. c4 {[%clk 0:02:45.4]} 12...
g5 {[%clk 0:02:33.8]} 13. Bg3 {[%clk 0:02:44.7]} 13... Bg7 {[%clk 0:02:33.4]}
14. Qe2 {[%clk 0:02:37.7]} 14... Bb7 {[%clk 0:02:05]} 15. Nc3 {[%clk 0:02:36.4]}
15... a5 {[%clk 0:01:57.3]} 16. Rac1 {[%clk 0:02:35.5]} 16... Qd8 {[%clk
0:01:41.6]} 17. cxd5 {[%clk 0:02:29.4]} 17... cxd5 {[%clk 0:01:40.8]} 18. Nb5
{[%clk 0:02:30]} 18... O-O {[%clk 0:01:35.5]} 19. Nd4 {[%clk 0:02:10.6]} 19...
Qe7 {[%clk 0:01:23.4]} 20. Bb1 {[%clk 0:02:07.5]} 20... Rfc8 {[%clk 0:01:17.6]}
21. Qd3 {[%clk 0:02:02.5]} 21... Rxc1 {[%clk 0:01:14.7]} 22. Qh7+ {[%clk
0:02:01.5]} 22... Kf8 {[%clk 0:01:13.6]} 23. Rxc1 {[%clk 0:02:01.1]} 23... Nxe5
{[%clk 0:00:51.3]} 24. Nb5 {[%clk 0:01:50.2]} 24... Rc8 {[%clk 0:00:43.4]} 25.
Re1 {[%clk 0:01:48.3]} 25... f6 {[%clk 0:00:38.2]} 26. a4 {[%clk 0:01:35.3]}
26... Qb4 {[%clk 0:00:33.9]} 27. f4 {[%clk 0:01:23.8]} 27... gxf4 {[%clk
0:00:29.1]} 28. Bf2 {[%clk 0:01:21.9]} 28... Qxb3 {[%clk 0:00:25.4]} 29. Nd6
{[%clk 0:01:17.9]} 29... Rc4 {[%clk 0:00:21.6]} 30. Ne8 {[%clk 0:01:11.8]} 30...
Kxe8 {[%clk 0:00:19.8]} 31. Qxg7 {[%clk 0:01:10.4]} 31... Nd7 {[%clk 0:00:15.1]}
32. Qg8+ {[%clk 0:01:02.3]} 32... Nf8 {[%clk 0:00:09.3]} 33. Rxe6+ {[%clk
0:01:00.7]} 33... Kd7 {[%clk 0:00:09.8]} 34. Qf7+ {[%clk 0:01:00.2]} 1-0